fUSD/lending_fUSD_20250523
["ID","MTS","AMOUNT","RATE_DAILY","PERIOD"]
[362140759,1748031046239,-1658.89499988,0.0002729,2]
[362140761,1748031046250,-214.48178589,0.0002729,2]
[362140763,1748031046259,-628.57819576,0.00027349,2]
[362140765,1748031046296,324.16772795,0.00042459,120]
[362140766,1748031047152,420.0,0.00042459,120]
[362140767,1748031047986,420.0,0.00042459,120]
[362140768,1748031049865,420.0,0.00042459,120]
[362140769,1748031049919,420.0,0.00042459,120]
[362140770,1748031050112,420.0,0.00042459,120]
[362140771,1748031050173,420.0,0.00042459,120]
[362140772,1748031050407,420.0,0.00042459,120]
[362140773,1748031052630,420.0,0.00042459,120]
[362140774,1748031052733,420.0,0.00042459,120]
[362140775,1748031052907,420.0,0.00042459,120]
[362140776,1748031055001,420.0,0.00042459,120]
[362140777,1748031055255,420.0,0.00042459,120]
[362140778,1748031055530,420.0,0.00042459,120]
[362140780,1748031059991,420.0,0.00042459,120]
[362140781,1748031060240,420.0,0.00042459,120]
[362140783,1748031062373,420.0,0.00042459,120]
[362140784,1748031062621,420.0,0.00042459,120]
[362140786,1748031063525,424.7719926,0.00042459,120]
[362140787,1748031065150,420.0,0.00042459,120]
[362140788,1748031065497,1004.66687566,0.00042459,120]
[362140790,1748031067323,369.35059608,0.00042459,120]
[362140791,1748031067631,420.0,0.00042459,120]
[362140793,1748031069745,421.97234,0.00042459,120]
[362140794,1748031073368,420.0,0.00042459,120]
[362140795,1748031073405,420.0,0.00042459,120]
[362140796,1748031073436,420.0,0.00042459,120]
[362140797,1748031073643,423.20073091,0.00042459,120]
[362140798,1748031074695,442.66,0.00042459,120]
[362140799,1748031075778,420.0,0.00042459,120]
[362140800,1748031076197,420.0,0.00042459,120]
[362140801,1748031076379,420.0,0.00042459,120]
[362140802,1748031076714,422.73723831,0.00042459,120]
[362140803,1748031078492,421.32189667,0.00042459,120]
[362140804,1748031080538,420.0,0.00042459,120]
[362140805,1748031083194,420.0,0.00042459,120]
[362140806,1748031084212,422.39298805,0.00042459,120]
[362140807,1748031088077,420.0,0.00042459,120]
[362140808,1748031090946,443.3095095,0.00042459,120]
[362140809,1748031093978,420.0,0.00042459,120]
[362140810,1748031094252,420.0,0.00042459,120]
[362140811,1748031094496,481.60221996,0.00042459,120]
[362140812,1748031095010,420.0,0.00042459,120]
[362140813,1748031097102,425.68044165,0.00042459,120]
[362140814,1748031097133,420.0,0.00042459,120]
[362140816,1748031100589,400.0,0.00042459,120]
[362140817,1748031104445,420.0,0.00042459,120]
[362140818,1748031104722,430.54620442,0.00042459,120]
[362140819,1748031107275,420.0,0.00042459,120]
[362140820,1748031107369,420.0,0.00042459,120]
[362140821,1748031107972,420.0,0.00042459,120]
[362140822,1748031109085,420.0,0.00042459,60]
[362140823,1748031111119,420.0,0.00042459,120]
[362140824,1748031111667,421.78352228,0.00042459,120]
[362140825,1748031112241,420.0,0.00042459,120]
[362140826,1748031113159,420.0,0.00042459,120]
[362140827,1748031113415,420.0,0.00042459,120]
[362140828,1748031113667,420.0,0.00042459,120]
[362140829,1748031113905,405.03,0.00042459,120]
[362140830,1748031115266,511.66,0.00042459,120]
[362140831,1748031118125,420.0,0.00042459,120]
[362140832,1748031124567,156.587,0.00042459,120]
[362140833,1748031125072,154.1686952,0.00042459,120]
[362140834,1748031128402,200.0,0.00042459,120]
[362140835,1748031129059,207.4,0.00042459,120]
[362140836,1748031129667,215.0738,0.00042459,120]
[362140837,1748031130327,223.0315306,0.00042459,120]
[362140838,1748031130993,231.28369723,0.00042459,120]
[362140839,1748031131637,239.84119403,0.00042459,120]
[362140840,1748031132271,239.84119403,0.00042459,120]
[362140841,1748031133865,420.0,0.00042459,120]
[362140842,1748031134404,420.0,0.00042459,120]
[362140844,1748031166501,420.0,0.00042459,120]
[362140845,1748031181385,420.0,0.00042459,120]
[362140846,1748031187639,420.0,0.00042459,120]
[362140847,1748031192926,421.20448369,0.00042459,120]
[362140848,1748031200444,421.29666868,0.00042459,120]
[362140849,1748031202320,420.0,0.00042459,120]
[362140850,1748031204677,248.41058513,0.00042459,120]
[362140851,1748031206512,420.0,0.00042459,120]
[362140852,1748031210380,382.20349836,0.00042459,120]
[362140853,1748031212413,370.3483187,0.00042459,120]
[362140854,1748031214643,421.9769543,0.00042459,120]
[362140855,1748031215844,420.0,0.00042459,120]
[362140856,1748031216116,439.55,0.00042459,120]
[362140857,1748031229958,421.59855778,0.00042459,120]
[362140858,1748031261726,233.67276501,0.00042459,120]
[362140862,1748031270321,420.0,0.00042459,120]
[362140863,1748031270587,180.0,0.00042459,120]
[362140866,1748031307764,420.0,0.00042459,120]
[362140867,1748031327347,354.18509632,0.00042459,120]
[362140868,1748031327581,420.0,0.00042459,120]
[362140869,1748031332417,285.59815242,0.00042459,120]
[362140870,1748031333200,441.28,0.00042459,120]
[362140871,1748031335257,420.0,0.00042459,120]
[362140872,1748031342943,420.0,0.00042459,120]
[362140873,1748031343702,420.0,0.00042459,120]
[362140874,1748031345557,420.0,0.00042459,120]
[362140875,1748031361581,167.01,0.00025797,120]
[362140876,1748031364427,206.60168873,0.00042459,120]
[362140877,1748031425512,200.0,0.00042459,120]
[362140878,1748031426141,207.4,0.00042459,120]
[362140879,1748031426812,215.0738,0.00042459,120]
[362140880,1748031427466,223.0315306,0.00042459,120]
[362140905,1748031647592,420.0,0.00042458,120]
[362140906,1748031653197,420.0,0.00042458,120]
[362140907,1748031659134,420.0,0.00042458,120]
[362140908,1748031664082,256.7310383,0.00042458,120]
[362140909,1748031664996,420.0,0.00042458,120]
[362140910,1748031665980,420.0,0.00042458,120]
[362140911,1748031668510,420.0,0.00042458,120]
[362140912,1748031670657,358.1476367,0.00042458,120]
[362140913,1748031680095,420.0,0.00042458,120]
[362140914,1748031684374,420.0,0.00042458,120]
[362140915,1748031688442,420.0,0.00042458,120]
[362140916,1748031692076,420.0,0.00042458,120]
[362140917,1748031703984,328.38512541,0.00042458,120]
[362140918,1748031706027,420.0,0.00042458,120]
[362140919,1748031709579,420.0,0.00042458,120]
[362140920,1748031725843,219.62131203,0.00042458,120]
[362140921,1748031766367,250.0,0.00015,2]
[362140922,1748031767439,300.0,0.00017,2]
[362140923,1748031805737,151.27,0.00013699,2]
[362140931,1748032005135,-229.72287264,0.00019,2]
[362140936,1748032039700,2056.48616013,0.0001305,2]
[362140938,1748032122156,4964.02643284,0.00013368,2]
[362140939,1748032167095,-120.27712736,0.00019,2]
[362140940,1748032226760,232.44500239,0.00017001,2]
[362140941,1748032226784,1.73499761,0.00017001,2]
[362140945,1748032231818,-168.66,0.00019378,2]
[362140947,1748032231827,-1200.0,0.00019899,2]
[362140950,1748032231837,-300.0,0.00019899,2]
[362140951,1748032231846,-7787.95072516,0.000199,2]
[362140952,1748032231856,-320.10870616,0.000199,2]
[362140953,1748032231866,-591.17965712,0.000199,2]
[362140954,1748032231875,-300.71610326,0.0001995,2]
[362140955,1748032231885,-500.0,0.00019973,2]
[362140956,1748032231894,-500.0,0.00019973,2]
[362140957,1748032231904,-612.64823099,0.00019973,2]
[362140958,1748032231913,-500.0,0.00019973,2]
[362140959,1748032231922,-500.0,0.00019973,2]
[362140960,1748032231932,-500.0,0.00019973,2]
[362140961,1748032231942,-500.0,0.00019973,2]
[362140962,1748032231951,-500.0,0.00019973,2]
[362140963,1748032231961,-151.16,0.0001999,2]
[362140964,1748032231976,-151.16,0.0001999,2]
[362140965,1748032231985,-151.16,0.0001999,2]
[362140966,1748032231995,-150.0,0.00019998,2]
[362140967,1748032232004,-300.0,0.00019999,2]
[362140968,1748032232015,-294.76477588,0.00019999,2]
[362140969,1748032232024,-181.64372803,0.00019999,2]
[362140970,1748032232033,-243.09577507,0.00019999,2]
[362140971,1748032232044,-271.90109067,0.00019999,2]
[362140972,1748032232054,-500.0,0.00019999,2]
[362140973,1748032232063,-531.24495146,0.00019999,2]
[362140974,1748032232073,-462.74148025,0.00019999,2]
[362140975,1748032232082,-500.0,0.00019999,2]
[362140976,1748032232091,-500.0,0.00019999,2]
[362140977,1748032232101,-500.0,0.00019999,2]
[362140978,1748032232110,-500.0,0.00019999,2]
[362140979,1748032232120,-500.0,0.00019999,2]
[362140980,1748032232130,-500.0,0.00019999,2]
[362140981,1748032232139,-500.0,0.00019999,2]
[362140982,1748032232148,-500.0,0.00019999,2]
[362140983,1748032232157,-500.4929152,0.00019999,2]
[362140984,1748032232166,-85742.76305087,0.0002,2]
[362140986,1748032232178,-155341.02516823,0.0002,2]
[362140987,1748032232189,-61200.0,0.0002,2]
[362140988,1748032232205,-77751.91125697,0.0002,2]
[362140989,1748032232216,-5895.15198333,0.0002,2]
[362140990,1748032232227,-3088.92554577,0.0002,2]
[362140991,1748032232239,-720.63172157,0.0002,2]
[362140992,1748032232250,-627.68208494,0.0002,2]
[362140993,1748032232261,-350.0,0.0002,2]
[362140994,1748032232272,-652.35309432,0.0002,2]
[362140995,1748032232283,-949.81845582,0.0002,2]
[362140996,1748032232298,-609.88347487,0.0002,2]
[362140997,1748032232309,-762.17542217,0.0002,2]
[362141035,1748032237830,-290.78,0.00019899,2]
[362141036,1748032238100,-9.22,0.00019899,2]
[362141037,1748032238110,-195.61256279,0.0001999,2]
[362141038,1748032238119,-350.00671165,0.0002,2]
[362141039,1748032238131,-304.33057513,0.0002,2]
[362141040,1748032238142,-960.09146433,0.0002,2]
[362141041,1748032238153,-11885.17034381,0.0002,2]
[362141058,1748032240157,-3600.93,0.0002,2]
[362141059,1748032240169,-1199.30233872,0.0002,2]
[362141060,1748032240180,-316.37889428,0.0002,2]
[362141061,1748032240213,-684.18861474,0.0002,2]
[362141064,1748032242158,-0.01716145,0.0002,2]
[362141065,1748032242905,-1761.37212073,0.0002,2]
[362141066,1748032243234,-10752.9678174,0.0002,2]
[362141067,1748032243246,-798.75001,0.0002,2]
[362141068,1748032243258,-393.8979766,0.0002,2]
[362141069,1748032243289,-5317.37241311,0.0002,2]
[362141070,1748032243301,-5454.1751329,0.0002,2]
[362141075,1748032245830,-834.33088933,0.0002,2]
[362141076,1748032245843,-26775.12478161,0.0002,2]
[362141077,1748032245888,-199719.79250713,0.0002,2]
[362141078,1748032245899,-1610.64595161,0.0002,2]
[362141079,1748032245945,-98237.8046804,0.0002,2]
[362141080,1748032245960,-249244.88281682,0.0002,2]
[362141081,1748032245971,-1144.90002,0.0002,2]
[362141082,1748032246006,-199.33255376,0.000199,2]
[362141083,1748032246016,-1634.38663492,0.0002,2]
[362141084,1748032246174,-688.32384066,0.0002,2]
[362141085,1748032246233,-980.2890193,0.0002,2]
[362141088,1748032315161,-541.74178623,0.000197,2]
[362141089,1748032315187,-400.0,0.000198,7]
[362141090,1748032315213,-800.0,0.000199,7]
[362141091,1748032315242,-546.07594373,0.000199,2]
[362141092,1748032315270,-2811.4576906,0.000199,2]
[362141093,1748032315294,-500.62355551,0.000199,2]
[362141094,1748032315318,-500.0,0.00019973,2]
[362141095,1748032315342,-500.0,0.00019973,2]
[362141096,1748032315366,-504.44490417,0.00019973,2]
[362141097,1748032315390,-1000.0,0.00019999,2]
[362141098,1748032315414,-300.0,0.00019999,2]
[362141099,1748032315438,-617.34480435,0.00019999,2]
[362141100,1748032315462,-500.0,0.00019999,2]
[362141101,1748032315485,-550.72005411,0.00019999,2]
[362141102,1748032315512,-1048319.14857696,0.0002,2]
[362141103,1748032315538,-1319.31,0.0002,2]
[362141104,1748032315563,-533524.98751513,0.0002,2]
[362141105,1748032334235,238.36248599,0.00042458,120]
[362141112,1748032353675,420.0,0.00042458,120]
[362141113,1748032354019,420.0,0.00042458,120]
[362141114,1748032354178,420.0,0.00042458,120]
[362141115,1748032354452,420.0,0.00042458,120]
[362141116,1748032355023,420.0,0.00042458,120]
[362141117,1748032355300,420.0,0.00042458,120]
[362141118,1748032355542,420.0,0.00042458,120]
[362141119,1748032358872,259.0147536,0.00042458,60]
[362141120,1748032375607,767.04,0.00042458,120]
[362141121,1748032375760,767.04,0.00042458,120]
[362141122,1748032376044,767.04,0.00042458,120]
[362141123,1748032376334,767.04,0.00042458,120]
[362141124,1748032376587,767.04,0.00042458,120]
[362141125,1748032376832,767.04,0.00042458,120]
[362141126,1748032377087,767.04,0.00042458,120]
[362141127,1748032377353,767.04,0.00042458,120]
[362141128,1748032377607,767.04,0.00042458,120]
[362141129,1748032377861,767.04,0.00042458,120]
[362141130,1748032378150,767.04,0.00042458,120]
[362141131,1748032378402,767.04,0.00042458,120]
[362141132,1748032378652,767.04,0.00042458,120]
[362141133,1748032378896,767.04,0.00042458,120]
[362141134,1748032379142,767.04,0.00042458,120]
[362141135,1748032379459,767.04,0.00042458,120]
[362141136,1748032379719,767.04,0.00042458,120]
[362141137,1748032379982,767.04,0.00042458,120]
[362141138,1748032380241,767.04,0.00042458,120]
[362141139,1748032380506,767.04,0.00042458,120]
[362141140,1748032380782,767.04,0.00042458,120]
[362141141,1748032381080,767.04,0.00042458,120]
[362141142,1748032381483,767.04,0.00042458,120]
[362141143,1748032381721,767.12,0.00042458,120]
[362141144,1748032384127,701.5,0.00042458,120]
[362141145,1748032384370,701.5,0.00042458,120]
[362141146,1748032384616,701.5,0.00042458,120]
[362141147,1748032384850,701.5,0.00042458,120]
[362141148,1748032385151,701.5,0.00042458,120]
[362141149,1748032385413,701.5,0.00042458,120]
[362141150,1748032385747,701.5,0.00042458,120]
[362141151,1748032386126,701.5,0.00042458,120]
[362141152,1748032386204,701.5,0.00042458,120]
[362141153,1748032386830,701.5,0.00042458,120]
[362141154,1748032387090,701.5,0.00042458,120]
[362141155,1748032387378,701.5,0.00042458,120]
[362141156,1748032387612,701.5,0.00042458,120]
[362141157,1748032387728,414.09,0.00042458,120]
[362141158,1748032387870,701.5,0.00042458,120]
[362141159,1748032388152,701.5,0.00042458,120]
[362141160,1748032388415,701.5,0.00042458,120]
[362141161,1748032388674,701.5,0.00042458,120]
[362141162,1748032388929,701.5,0.00042458,120]
[362141163,1748032389177,701.5,0.00042458,120]
[362141164,1748032389297,420.0,0.00042458,120]
[362141165,1748032389428,701.5,0.00042458,120]
[362141166,1748032389541,420.0,0.00042458,120]
[362141167,1748032389680,701.5,0.00042458,120]
[362141168,1748032389780,420.0,0.00042458,120]
[362141169,1748032389916,701.5,0.00042458,120]
[362141170,1748032390045,420.0,0.00042458,120]
[362141171,1748032390161,701.5,0.00042458,120]
[362141172,1748032390306,420.0,0.00042458,120]
[362141173,1748032390391,701.58,0.00042458,120]
[362141174,1748032390557,420.0,0.00042458,120]
[362141175,1748032390803,420.0,0.00042458,120]
[362141176,1748032391054,420.0,0.00042458,120]
[362141177,1748032391324,420.0,0.00042458,120]
[362141178,1748032391577,420.0,0.00042458,120]
[362141179,1748032391812,420.0,0.00042458,120]
[362141180,1748032392071,420.0,0.00042458,120]
[362141181,1748032392377,420.0,0.00042458,120]
[362141182,1748032392623,420.0,0.00042458,120]
[362141183,1748032392871,420.0,0.00042458,120]
[362141184,1748032393134,420.0,0.00042458,120]
[362141185,1748032393391,520.73,0.00042458,120]
[362141186,1748032409700,420.0,0.00042458,120]
[362141187,1748032409981,420.0,0.00042458,120]
[362141188,1748032410328,420.0,0.00042458,120]
[362141189,1748032410570,420.0,0.00042458,120]
[362141190,1748032410848,420.0,0.00042458,120]
[362141191,1748032411118,420.0,0.00042458,120]
[362141192,1748032411369,420.0,0.00042458,120]
[362141193,1748032411624,420.0,0.00042458,120]
[362141194,1748032411904,420.0,0.00042458,120]
[362141195,1748032412154,420.0,0.00042458,120]
[362141196,1748032412409,420.0,0.00042458,120]
[362141197,1748032412651,420.0,0.00042458,120]
[362141198,1748032412898,420.0,0.00042458,120]
[362141199,1748032413319,420.0,0.00042458,120]
[362141200,1748032413393,420.0,0.00042458,120]
[362141201,1748032413636,420.0,0.00042458,120]
[362141202,1748032413882,420.0,0.00042458,120]
[362141203,1748032414136,420.0,0.00042458,120]
[362141204,1748032414372,420.0,0.00042458,120]
[362141205,1748032414632,420.0,0.00042458,120]
[362141206,1748032414903,420.0,0.00042458,120]
[362141207,1748032415146,420.0,0.00042458,120]
[362141208,1748032415452,469.04,0.00042458,120]
[362141209,1748032416717,1030.54,0.00042458,120]
[362141210,1748032416834,1030.54,0.00042458,120]
[362141211,1748032417431,1030.54,0.00042458,120]
[362141212,1748032417683,1030.54,0.00042458,120]
[362141213,1748032417957,1030.54,0.00042458,120]
[362141214,1748032418206,1030.54,0.00042458,120]
[362141215,1748032418476,1030.54,0.00042458,120]
[362141217,1748032418718,1030.54,0.00042458,120]
[362141227,1748032419071,1030.54,0.00042458,120]
[362141228,1748032419322,1030.54,0.00042458,120]
[362141229,1748032420690,1030.54,0.00042458,120]
[362141230,1748032420927,1030.54,0.00042458,120]
[362141231,1748032421171,1030.54,0.00042458,120]
[362141232,1748032421405,1030.54,0.00042458,120]
[362141233,1748032421660,1030.54,0.00042458,120]
[362141234,1748032422257,1030.54,0.00042458,120]
[362141235,1748032422517,1030.54,0.00042458,120]
[362141236,1748032422776,1030.54,0.00042458,120]
[362141237,1748032423033,1030.54,0.00042458,120]
[362141238,1748032423297,1030.54,0.00042458,120]
[362141239,1748032423563,1030.54,0.00042458,120]
[362141240,1748032423813,1030.54,0.00042458,120]
[362141241,1748032424054,1030.54,0.00042458,120]
[362141242,1748032424314,1030.7,0.00042458,120]
[362141243,1748032424838,420.0,0.00042458,120]
[362141244,1748032425038,420.0,0.00042458,120]
[362141245,1748032425090,420.0,0.00042458,120]
[362141246,1748032425300,420.0,0.00042458,120]
[362141247,1748032425335,420.0,0.00042458,120]
[362141248,1748032425564,420.0,0.00042458,120]
[362141249,1748032425609,160.8,0.00042458,120]
[362141250,1748032425843,420.0,0.00042458,120]
[362141251,1748032426093,173.37843172,0.00042458,120]
[362141252,1748032427903,420.0,0.00042458,120]
[362141253,1748032428172,420.0,0.00042458,120]
[362141254,1748032428410,420.0,0.00042458,120]
[362141255,1748032428716,420.0,0.00042458,120]
[362141256,1748032428952,420.0,0.00042458,120]
[362141257,1748032429207,420.0,0.00042458,120]
[362141258,1748032429460,420.0,0.00042458,120]
[362141259,1748032429702,420.0,0.00042458,120]
[362141260,1748032429965,420.0,0.00042458,120]
[362141261,1748032430224,420.0,0.00042458,120]
[362141262,1748032430475,420.0,0.00042458,120]
[362141263,1748032430774,420.0,0.00042458,120]
[362141264,1748032431016,420.0,0.00042458,120]
[362141265,1748032431271,420.0,0.00042458,120]
[362141266,1748032431541,420.0,0.00042458,120]
[362141267,1748032431833,420.0,0.00042458,120]
[362141268,1748032432091,420.0,0.00042458,120]
[362141269,1748032432378,420.0,0.00042458,120]
[362141270,1748032432623,420.0,0.00042458,120]
[362141271,1748032432886,469.2,0.00042458,120]
[362141272,1748032434871,420.0,0.00042458,120]
[362141273,1748032434933,420.0,0.00042458,120]
[362141274,1748032435210,420.0,0.00042458,120]
[362141275,1748032435456,420.0,0.00042458,120]
[362141276,1748032435710,420.0,0.00042458,120]
[362141277,1748032435954,420.0,0.00042458,120]
[362141278,1748032436221,420.0,0.00042458,120]
[362141279,1748032436582,420.0,0.00042458,120]
[362141280,1748032436837,420.0,0.00042458,120]
[362141281,1748032437222,420.0,0.00042458,120]
[362141282,1748032437323,420.0,0.00042458,120]
[362141283,1748032437682,420.0,0.00042458,120]
[362141284,1748032437936,420.0,0.00042458,120]
[362141285,1748032438253,420.0,0.00042458,120]
[362141286,1748032438491,420.0,0.00042458,120]
[362141287,1748032438741,420.0,0.00042458,120]
[362141288,1748032439009,420.0,0.00042458,120]
[362141289,1748032439264,420.0,0.00042458,120]
[362141290,1748032439531,420.0,0.00042458,120]
[362141291,1748032439796,420.0,0.00042458,120]
[362141292,1748032440056,420.0,0.00042458,120]
[362141293,1748032440299,420.0,0.00042458,120]
[362141294,1748032440341,420.0,0.00042458,120]
[362141295,1748032440546,420.0,0.00042458,120]
[362141296,1748032440581,420.0,0.00042458,120]
[362141297,1748032440806,227.44,0.00042458,120]
[362141298,1748032440847,225.24893449,0.00042458,120]
[362141299,1748032442451,420.0,0.00042458,120]
[362141300,1748032442760,239.88,0.00042458,120]
[362141301,1748032452518,420.0,0.00042458,120]
[362141302,1748032452779,420.0,0.00042458,120]
[362141303,1748032453038,420.0,0.00042458,120]
[362141304,1748032453275,420.0,0.00042458,120]
[362141305,1748032453548,420.0,0.00042458,120]
[362141306,1748032453833,420.0,0.00042458,120]
[362141307,1748032454074,420.0,0.00042458,120]
[362141308,1748032454310,420.0,0.00042458,120]
[362141309,1748032454578,420.0,0.00042458,120]
[362141310,1748032454812,420.0,0.00042458,120]
[362141311,1748032455238,420.0,0.00042458,120]
[362141312,1748032455483,420.0,0.00042458,120]
[362141313,1748032455745,420.0,0.00042458,120]
[362141314,1748032456012,420.0,0.00042458,120]
[362141315,1748032456287,420.0,0.00042458,120]
[362141316,1748032456867,264.4,0.00042458,120]
[362141317,1748032458042,980.57,0.00042458,120]
[362141318,1748032458284,980.57,0.00042458,120]
[362141319,1748032458531,980.57,0.00042458,120]
[362141320,1748032458777,980.57,0.00042458,120]
[362141321,1748032459205,980.57,0.00042458,120]
[362141322,1748032459454,980.57,0.00042458,120]
[362141323,1748032459706,980.57,0.00042458,120]
[362141324,1748032459936,980.57,0.00042458,120]
[362141325,1748032460196,980.57,0.00042458,120]
[362141326,1748032460438,980.57,0.00042458,120]
[362141327,1748032460691,980.57,0.00042458,120]
[362141328,1748032460961,980.57,0.00042458,120]
[362141329,1748032461219,980.57,0.00042458,120]
[362141330,1748032461452,980.57,0.00042458,120]
[362141331,1748032461684,980.57,0.00042458,120]
[362141332,1748032461860,420.0,0.00042458,120]
[362141333,1748032461950,980.57,0.00042458,120]
[362141334,1748032462110,420.0,0.00042458,120]
[362141335,1748032462201,980.57,0.00042458,120]
[362141336,1748032462343,420.0,0.00042458,120]
[362141337,1748032462446,980.57,0.00042458,120]
[362141338,1748032462595,420.0,0.00042458,120]
[362141339,1748032462680,980.57,0.00042458,120]
[362141340,1748032462874,420.0,0.00042458,120]
[362141341,1748032462915,980.57,0.00042458,120]
[362141342,1748032463122,420.0,0.00042458,120]
[362141343,1748032463160,980.57,0.00042458,120]
[362141344,1748032463372,420.0,0.00042458,120]
[362141345,1748032463408,980.57,0.00042458,120]
[362141346,1748032463629,980.57,0.00042458,120]
[362141347,1748032463665,420.0,0.00042458,120]
[362141348,1748032463876,420.0,0.00042458,120]
[362141349,1748032463994,980.57,0.00042458,120]
[362141350,1748032464138,420.0,0.00042458,120]
[362141351,1748032464391,420.0,0.00042458,120]
[362141352,1748032465128,420.0,0.00042458,120]
[362141353,1748032465394,420.0,0.00042458,120]
[362141354,1748032465624,420.0,0.00042458,120]
[362141355,1748032465912,420.0,0.00042458,120]
[362141356,1748032466150,297.68,0.00042458,120]
[362141357,1748032468405,420.0,0.00042458,120]
[362141358,1748032468491,420.0,0.00042458,120]
[362141359,1748032468805,420.0,0.00042458,120]
[362141360,1748032469023,420.0,0.00042458,120]
[362141361,1748032469268,420.0,0.00042458,120]
[362141362,1748032469546,420.0,0.00042458,120]
[362141363,1748032469818,420.0,0.00042458,120]
[362141364,1748032470415,420.0,0.00042458,120]
[362141365,1748032470663,420.0,0.00042458,120]
[362141366,1748032470904,420.0,0.00042458,120]
[362141367,1748032471210,420.0,0.00042458,120]
[362141368,1748032471766,420.0,0.00042458,120]
[362141369,1748032471825,420.0,0.00042458,120]
[362141370,1748032471867,164.36,0.00025855,120]
[362141371,1748032472000,420.0,0.00042458,120]
[362141372,1748032472234,420.0,0.00042458,120]
[362141373,1748032472478,420.0,0.00042458,120]
[362141374,1748032473090,420.0,0.00042458,120]
[362141375,1748032473341,304.96,0.00042458,120]
[362141376,1748032475207,586.45,0.00042458,120]
[362141377,1748032475459,586.45,0.00042458,120]
[362141378,1748032475862,586.45,0.00042458,120]
[362141379,1748032476862,586.45,0.00042458,120]
[362141380,1748032477113,586.45,0.00042458,120]
[362141381,1748032477355,586.45,0.00042458,120]
[362141382,1748032477594,586.45,0.00042458,120]
[362141383,1748032477853,586.45,0.00042458,120]
[362141384,1748032478120,586.45,0.00042458,120]
[362141385,1748032478350,586.45,0.00042458,120]
[362141386,1748032478736,586.45,0.00042458,120]
[362141387,1748032478838,586.45,0.00042458,120]
[362141388,1748032479084,586.45,0.00042458,120]
[362141389,1748032479343,586.45,0.00042458,120]
[362141390,1748032479612,586.45,0.00042458,120]
[362141391,1748032479846,586.45,0.00042458,120]
[362141392,1748032480098,586.45,0.00042458,120]
[362141393,1748032480334,586.45,0.00042458,120]